bitfinex/quotes_SOLUSD_20240809
["timestamp","ask_amount","ask_price","bid_price","bid_amount"]
[1723213847102,44.31,154.34,154.19,44.31]
[1723213847321,45.4153873,154.34,154.16,61.1332919]
[1723213847498,6.4825,154.26,154.16,16.8232919]
[1723213847702,6.482,154.28,154.16,16.8232919]
[1723213847905,6.4822,154.27,154.16,16.8232919]
[1723213848109,44.31,154.31,154.16,16.8232919]
[1723213848416,2.52308206,154.36,154.2,6.1591]
[1723213848626,6.71905554,154.38,154.22,44.31]
[1723213848627,7.82444284,154.38,154.22,44.31]
[1723213848826,640.4,154.39,154.25,44.31]
[1723213848993,646.8772,154.39,154.26,17.61284415]
[1723213849191,646.8772,154.39,154.26,37.61284415]
[1723213849388,6.4777,154.38,154.26,37.61284415]
[1723213849892,646.8771,154.39,154.26,17.61284415]
[1723213850095,640.4,154.39,154.26,17.61284415]
[1723213850291,640.4,154.39,154.2,6.1591]
[1723213850292,44.31,154.34,154.2,6.1591]
[1723213850491,44.31,154.31,154.2,6.1591]
[1723213850698,1.1053873,154.3,154.2,6.1591]
[1723213850996,20.0,154.3,154.2,6.1591]
[1723213851205,6.4799,154.33,154.2,6.1591]
[1723213851400,6.4818,154.28,154.2,6.1591]
[1723213851714,6.60759,154.27,154.2,6.1591]
[1723213852014,0.12549,154.27,154.2,6.1591]
[1723213852220,6.73348,154.27,154.2,6.1591]
[1723213852514,1.1053873,154.26,154.2,6.1591]
[1723213852688,0.25098,154.25,154.16,0.8329919]
[1723213852889,6.4842,154.23,154.16,0.8329919]
[1723213853089,0.25098,154.24,154.16,0.8329919]
[1723213853289,0.25098,154.23,154.16,0.8329919]
[1723213853814,6.73478,154.23,154.17,6.4863]
[1723213854114,6.4843,154.22,154.16,0.8329919]
[1723213854319,6.61179,154.17,154.16,0.8329919]
[1723213854522,7.7171773,154.17,154.16,0.8329919]
[1723213854701,73.0936473,154.17,154.16,0.8329919]
[1723213855910,16.34279,154.16,154.04,13.0782]
[1723213856111,66.6073473,154.17,154.02,6.4924]
[1723213856112,0.12549,154.11,154.02,6.4924]
[1723213856314,6.61599,154.08,154.02,6.4926]
[1723213856524,6.86707,154.07,154.01,7.3259919]
[1723213856695,1.4818573,154.07,154.01,0.8329919]
[1723213856901,0.37647,154.07,154.01,0.8329919]
[1723213857411,0.25098,154.07,154.03,6.4922]
[1723213857615,0.12549,154.07,154.03,6.4922]
[1723213857919,44.31,154.15,154.04,1.29851766]
[1723213858116,44.31,154.18,154.04,1.29851766]
[1723213858321,44.31,154.18,154.01,45.1429919]
[1723213858322,1.1053873,154.17,154.01,45.1429919]
[1723213858614,1.1053873,154.17,154.01,46.44092073]
[1723213858804,44.31,154.18,154.1,6.4892]
[1723213858805,6.4868,154.16,154.1,6.4892]
[1723213859001,50.7961,154.18,154.12,6.4884]
[1723213859201,44.31,154.24,154.07,44.31]
[1723213859406,44.31,154.24,154.16,6.4867]
[1723213859605,1.1053873,154.26,154.1,50.9735]
[1723213859803,6.4817,154.28,154.13,44.31]
[1723213860004,1.1053873,154.27,154.13,44.31]
[1723213860299,44.31,154.19,154.03,6.6635]
[1723213860511,44.31,154.19,154.04,1.2979037]
[1723213860816,6.4859,154.18,154.04,1.29759632]
[1723213861020,44.31,154.19,154.03,7.96122527]
[1723213861195,50.7942,154.22,154.16,6.4867]
[1723213861531,44.31,154.25,154.08,44.31]
[1723213861817,6.6389,154.31,154.23,6.4836]
[1723213861993,44.31,154.32,154.15,1.29687331]
[1723213862195,32.404,154.31,154.14,15.6574]
[1723213862413,44.31,154.26,154.14,15.6574]
[1723213862614,52.404,154.31,154.05,15.6574]
[1723213862615,44.31,154.23,154.05,15.6574]
[1723213862837,44.31,154.23,154.12,6.4883]
[1723213862838,6.4864,154.17,154.12,6.4883]
[1723213863005,6.4864,154.17,154.05,15.6574]
[1723213863006,7.5920873,154.16,154.1,6.4891]
[1723213863196,7.5920873,154.16,154.09,6.4896]
[1723213863197,6.4872,154.15,154.09,6.4896]
[1723213863414,6.4887,154.12,154.05,15.6574]
[1723213863603,1.1053873,154.12,154.06,6.4909]
[1723213863806,0.12549,154.13,154.03,6.6635]
[1723213863807,0.12549,154.11,154.03,6.6635]
[1723213864108,0.12549,154.12,154.01,0.8329919]
[1723213864304,1.2308773,154.11,154.01,0.8329919]
[1723213864536,0.12549,154.1,154.06,6.4909]
[1723213864720,6.61439,154.11,154.05,6.4913]
[1723213865033,1.4818573,154.1,154.01,0.8329919]
[1723213865327,6.4897,154.09,154.03,6.492]
[1723213865519,6.4897,154.09,154.01,0.8329919]
[1723213865520,0.12549,154.07,154.01,0.8329919]
[1723213866207,1.2308773,154.07,154.01,0.8329919]
[1723213866410,0.12549,154.06,154.01,0.8329919]
[1723213866630,0.12549,154.07,154.01,0.8329919]
[1723213866941,6.61619,154.07,154.01,7.3259919]
[1723213867107,0.37647,154.06,154.01,0.8329919]
[1723213867434,44.56098,154.05,154.01,0.8329919]
[1723213867605,0.12549,154.04,154.01,0.8329919]
[1723213867921,44.43549,154.05,154.01,0.8329919]
[1723213868330,44.43549,154.05,153.87,10.17489539]
[1723213868331,0.12549,154.01,153.84,6.089]
[1723213868507,6.4946,153.98,153.84,6.089]
[1723213868702,7.5997873,153.98,153.91,6.497]
[1723213868902,0.12549,154.0,153.96,6.70406569]
[1723213869114,6.61869,154.01,153.96,0.20896569]
[1723213869324,0.12549,154.0,153.96,0.20896569]
[1723213869515,44.31,154.02,153.96,0.20896569]
[1723213869720,1.1053873,154.03,153.96,0.20896569]
[1723213870036,6.4927,154.02,153.96,6.70386569]
[1723213870207,6.4944,153.98,153.96,0.20896569]
[1723213870524,16.2477,154.07,153.96,0.20896569]
[1723213870525,7.6000873,153.97,153.96,0.20896569]
[1723213870838,15.6477,153.96,153.86,0.8329919]
[1723213871011,6.5,153.85,153.78,6.5025]
[1723213871214,1.1053873,153.84,153.7,0.8329919]
[1723213871443,44.31,153.86,153.7,0.8329919]
[1723213871444,1.2308773,153.85,153.7,0.8329919]
[1723213871620,0.12549,153.84,153.79,6.5022]
[1723213871822,44.31,153.86,153.71,45.61051692]
[1723213872011,50.8095,153.86,153.79,6.5019]
[1723213872210,6.4999,153.85,153.78,6.5027]
[1723213872512,6.4999,153.85,153.7,0.8329919]
[1723213872513,0.12549,153.85,153.79,6.5022]
[1723213872718,0.12549,153.85,153.7,1.78564923]
[1723213872719,0.37647,153.85,153.71,1.30052371]
[1723213872924,0.12549,153.84,153.7,0.4852242]
[1723213873105,0.12549,153.82,153.76,6.5034]
[1723213873308,1.3563673,153.82,153.7,0.4852242]
[1723213873536,6.4987,153.88,153.72,44.31]
[1723213873714,45.4153873,153.92,153.81,6.5014]
[1723213874051,44.31,153.89,153.75,1.30023038]
[1723213874243,44.31,153.89,153.81,6.5013]
[1723213874244,6.4986,153.88,153.81,6.5013]
[1723213874534,1.1053873,153.87,153.75,44.31]
[1723213874713,6.498,153.9,153.76,20.0]
[1723213874915,44.31,153.89,153.72,44.31]
[1723213875123,44.31,153.89,153.73,21.30022351]
[1723213875325,44.31,153.89,153.82,6.501]
[1723213875727,10.18722145,153.91,153.86,6.4992]
[1723213876040,45.4153873,153.92,153.75,44.31]
[1723213876206,52.10647454,153.92,153.75,44.31]
[1723213876406,52.10647454,153.92,153.74,1.3000721]
[1723213876407,44.31,153.89,153.74,1.30029513]
[1723213876655,44.31,153.89,153.82,6.5009]
[1723213876808,51.00108724,153.92,153.76,1.30018678]
[1723213877012,51.00108724,153.92,153.73,20.0]
[1723213877013,10.18629394,153.93,153.78,44.31]
[1723213877315,6.4985,153.88,153.72,44.31]
[1723213877625,6.4995,153.86,153.72,44.31]
[1723213877836,44.31,153.86,153.71,1.30056853]
[1723213878037,44.31,153.86,153.7,0.4852242]
[1723213878559,0.12549,153.83,153.7,0.4852242]
[1723213878720,0.12549,153.8,153.7,0.4852242]
[1723213878915,45.4153873,153.83,153.7,0.4852242]
[1723213878916,44.31,153.83,153.7,0.4852242]
[1723213879121,6.5019,153.8,153.74,6.5042]
[1723213879336,1.2308773,153.79,153.7,0.4852242]
[1723213879537,0.12549,153.77,153.7,0.4852242]
[1723213879867,1.3563673,153.77,153.7,0.4852242]
[1723213880138,6.5049,153.73,153.7,0.4852242]
[1723213880358,0.12549,153.71,153.7,0.4852242]
[1723213880648,0.12549,153.76,153.72,6.505]
[1723213880943,76.9318,153.83,153.7,0.4852242]
[1723213880944,0.12549,153.82,153.7,0.4852242]
[1723213881150,45.25098,153.82,153.73,6.5048]
[1723213881331,6.5019,153.8,153.73,6.5048]
[1723213881528,0.25098,153.79,153.73,6.5048]
[1723213881843,6.5013,153.82,153.75,6.5038]
[1723213882042,6.5016,153.81,153.7,0.4852242]
[1723213882230,6.502,153.8,153.7,0.4852242]
[1723213882429,6.5056,153.72,153.7,0.4852242]
[1723213882730,1.1053873,153.78,153.6,44.31]
[1723213882930,6.5041,153.75,153.61,1.3012381]
[1723213883122,44.31,153.75,153.64,6.5085]
[1723213883330,44.31,153.72,153.58,0.9280478]
[1723213883531,6.5062,153.7,153.58,0.9280478]
[1723213883726,1.1053873,153.7,153.58,0.9280478]
[1723213883935,6.507,153.68,153.58,0.9280478]
[1723213884131,50.8182,153.66,153.58,7.4392478]
[1723213884329,0.25098,153.65,153.58,0.9280478]
[1723213884563,6.5105,153.6,153.58,0.9280478]
[1723213884734,20.37647,153.59,153.58,0.9280478]
[1723213884937,51.9257873,153.6,153.58,0.9280478]
[1723213885132,0.12549,153.59,153.58,0.9280478]
[1723213885413,0.12549,153.59,153.42,10.20361791]
[1723213885414,44.31,153.54,153.42,10.20361791]
[1723213885570,1.1053873,153.53,153.41,2.66509895]
[1723213885746,44.31,153.57,153.51,6.5139]
[1723213885747,50.8218,153.57,153.51,6.5139]
[1723213885944,44.31,153.57,153.43,1.30280723]
[1723213886149,1.2308773,153.56,153.41,2.66509895]
[1723213886363,0.25098,153.59,153.42,1.30290758]
[1723213886541,6.5125,153.55,153.41,2.66509895]
[1723213886733,44.31,153.57,153.42,1.3029517]
[1723213886939,0.37647,153.56,153.41,2.66509895]
[1723213887168,45.6663673,153.55,153.46,6.516]
[1723213887364,45.6663673,153.55,153.41,2.66509895]
[1723213887365,0.12549,153.54,153.41,2.66509895]
[1723213887659,0.25098,153.54,153.46,6.5159]
[1723213887866,0.25098,153.53,153.41,2.66509895]
[1723213888040,45.6663673,153.52,153.41,2.66509895]
[1723213888241,51.01471114,153.55,153.49,6.5148]
[1723213888547,6.76388,153.54,153.47,6.5156]
[1723213888735,0.12549,153.52,153.46,6.5162]
[1723213888940,6.63959,153.52,153.41,2.66509895]
[1723213889163,6.515,153.5,153.42,6.5176]
[1723213889356,1.1053873,153.49,153.44,6.5171]
[1723213889663,1.1053873,153.49,153.41,2.66509895]
[1723213889664,0.12549,153.5,153.45,6.5166]
[1723213889960,0.12549,153.5,153.46,6.5162]
[1723213890172,1.1053873,153.54,153.41,2.66509895]
[1723213890173,6.5138,153.53,153.41,2.66509895]
[1723213890342,0.12549,153.51,153.44,6.5167]
[1723213890542,1.2308773,153.51,153.41,2.66509895]
[1723213890768,0.12549,153.49,153.41,2.66509895]
[1723213890963,1.2308773,153.49,153.41,2.66509895]
[1723213891168,0.25098,153.48,153.41,2.66509895]
[1723213891373,1.1053873,153.49,153.41,2.66509895]
[1723213891539,0.12549,153.48,153.41,2.66509895]
[1723213891737,6.5142,153.52,153.46,6.5163]
[1723213891937,6.5129,153.54,153.41,46.97509895]
[1723213892144,1.1053873,153.54,153.41,46.97509895]
[1723213892640,6.70471114,153.55,153.42,1.30340762]
[1723213892839,15.4275,153.57,153.5,6.5146]
[1723213893039,15.4275,153.57,153.41,46.97509895]
[1723213893040,6.5122,153.56,153.49,6.5147]
[1723213893245,22.13284755,153.57,153.51,6.5142]
[1723213893464,85.09544025,153.64,153.54,6.5129]
[1723213893638,1.1053873,153.63,153.47,44.31]
[1723213893848,6.70819929,153.6,153.51,44.31]
[1723213894056,6.5084,153.65,153.59,6.5108]
[1723213894367,1.1053873,153.64,153.56,6.5117]
[1723213894547,6.5086,153.65,153.59,6.5107]
[1723213894750,6.5078,153.66,153.6,6.5103]
[1723213894954,1.1053873,153.68,153.51,45.61215808]
[1723213894955,1.1053873,153.65,153.51,44.31]
[1723213895153,6.70650286,153.69,153.55,44.31]
[1723213895354,45.4153873,153.77,153.58,44.31]
[1723213895576,7.6098873,153.74,153.61,44.31]
[1723213895749,1.1053873,153.74,153.61,44.31]
[1723213895944,1.1053873,153.73,153.69,6.5066]
[1723213896242,2.52966916,153.8,153.59,0.12549]
[1723213896243,6.5023,153.8,153.66,44.31]
[1723213896441,6.5028,153.78,153.73,6.5048]
[1723213896643,1.1053873,153.81,153.69,44.31]
[1723213896953,1.1053873,153.81,153.66,44.31]
[1723213897155,6.5023,153.8,153.73,6.5045]
[1723213897350,6.5015,153.81,153.66,45.6110505]
[1723213897668,16.2502,153.85,153.75,6.504]
[1723213897871,88.62,153.76,153.65,6.5078]
[1723213898052,6.5066,153.7,153.63,6.5091]
[1723213898256,6.5066,153.7,153.67,6.0]
[1723213898257,1.1053873,153.69,153.67,6.0]
[1723213898446,44.31,153.72,153.67,6.0]
[1723213898643,6.5065,153.7,153.67,6.0]
[1723213898843,0.25098,153.69,153.67,6.0]
[1723213899059,6.75798,153.68,153.67,6.0]
[1723213899269,6.5092,153.63,153.5,6.4089]
[1723213899573,66.6073473,153.68,153.5,6.4089]
[1723213899574,6.5074,153.67,153.61,6.5098]
[1723213899761,6.63349,153.66,153.52,44.31]
[1723213899943,6.51,153.61,153.5,6.4089]
[1723213900144,0.12549,153.6,153.5,6.4089]
[1723213900378,44.43549,153.59,153.42,44.31]
[1723213900669,0.12549,153.57,153.42,45.61290165]
[1723213900876,1.2308773,153.57,153.42,44.31]
[1723213901167,0.37647,153.58,153.43,1.30300299]
[1723213901360,44.31,153.62,153.45,44.31]
[1723213901560,0.12549,153.6,153.55,6.5123]
[1723213901767,6.76148,153.6,153.54,6.5129]
[1723213901975,0.25098,153.6,153.54,6.5129]
[1723213902275,1.1053873,153.62,153.55,6.5122]
[1723213902479,0.25098,153.61,153.56,6.512]
[1723213902647,1.3563673,153.61,153.56,6.512]
[1723213902848,0.12549,153.6,153.48,44.31]
[1723213903066,1.3563673,153.6,153.51,6.5142]
[1723213903260,1.3563673,153.6,153.5,6.5145]
[1723213903261,6.5122,153.56,153.5,6.5145]
[1723213903588,0.12549,153.54,153.41,2.66509895]
[1723213903770,6.5141,153.52,153.45,6.5163]
[1723213903980,7.01616,153.51,153.45,6.5163]
[1723213904269,0.12549,153.54,153.41,2.66509895]
[1723213904473,0.12549,153.53,153.48,6.5154]
[1723213904677,0.12549,153.55,153.41,2.66509895]
[1723213904859,1.1053873,153.54,153.41,2.66509895]
[1723213905058,7.6183873,153.54,153.48,6.5154]
[1723213905257,0.12549,153.53,153.41,2.66509895]
[1723213905482,1.1053873,153.52,153.41,2.66509895]
[1723213905779,0.25098,153.51,153.41,2.66509895]
[1723213905957,0.12549,153.5,153.45,6.5165]
[1723213906170,1.1053873,153.49,153.41,2.66509895]
[1723213906352,0.12549,153.51,153.47,6.5158]
[1723213906553,6.5133,153.54,153.48,6.5154]
[1723213906775,6.63919,153.53,153.47,6.5155]
[1723213906989,44.31,153.53,153.41,2.66509895]
[1723213907160,6.515,153.49,153.41,2.66509895]
[1723213907357,6.63959,153.52,153.41,2.66509895]
[1723213907677,6.5142,153.51,153.44,6.5168]
[1723213907857,0.12549,153.52,153.41,2.66509895]
[1723213908174,0.12549,153.52,153.47,6.5159]
[1723213908384,6.89037,153.52,153.46,6.5163]
[1723213908581,6.76488,153.52,153.47,6.5159]
[1723213908757,6.76488,153.52,153.46,6.5163]
[1723213909272,6.76478,153.52,153.41,2.66509895]
[1723213909471,6.76478,153.52,153.47,6.5158]
[1723213909677,6.76478,153.52,153.41,2.66509895]
[1723213909867,6.5146,153.5,153.44,6.5171]
[1723213910061,6.5146,153.5,153.41,2.66509895]
[1723213910062,0.12549,153.48,153.43,6.5174]
[1723213910386,0.12549,153.48,153.41,2.66509895]
[1723213910387,6.64349,153.42,153.41,2.66509895]
[1723213910684,0.12549,153.42,153.41,2.66509895]
[1723213910854,6.76898,153.42,153.41,2.66509895]
[1723213911267,44.31,153.46,153.41,2.66509895]
[1723213911268,1.1053873,153.45,153.41,2.66509895]
[1723213911603,6.89367,153.44,153.41,2.66509895]
[1723213911777,1.1053873,153.43,153.41,2.66509895]
[1723213912077,1.1053873,153.46,153.41,2.66509895]
[1723213912378,6.518,153.42,153.41,2.66509895]
[1723213912568,6.89447,153.42,153.41,2.66509895]
[1723213912768,6.76898,153.42,153.41,2.66509895]
[1723213912978,7.01996,153.42,153.41,2.66509895]
[1723213913775,27.01996,153.42,153.41,2.66509895]
[1723213915068,26.518,153.42,153.41,2.66509895]
[1723213915418,6.518,153.42,153.41,2.66509895]
[1723213916816,6.76898,153.42,153.41,2.66509895]
[1723213917307,6.5193,153.4,153.31,1.7708927]
[1723213917513,45.43904406,153.44,153.31,1.7708927]
[1723213917817,44.31,153.44,153.31,1.7708927]
[1723213917980,44.31,153.44,153.31,2.57495613]
[1723213918186,44.31,153.37,153.31,1.2708927]
[1723213918388,1.1053873,153.36,153.31,1.2708927]
[1723213918986,6.5211,153.35,153.31,1.2708927]
[1723213919201,1.1053873,153.34,153.31,1.2708927]
[1723213919411,44.31,153.37,153.31,1.2708927]
[1723213919412,1.1053873,153.36,153.31,1.2708927]
[1723213919618,1.1053873,153.35,153.31,7.7933927]
[1723213920218,6.5193,153.39,153.31,1.2708927]
[1723213920512,6.5193,153.39,153.33,6.5218]
[1723213920709,0.12549,153.4,153.33,6.5218]
[1723213920710,6.5197,153.38,153.33,6.5218]
[1723213920911,7.6250873,153.38,153.32,6.5222]
[1723213921118,51.9350873,153.38,153.32,6.5222]
[1723213921410,44.31,153.38,153.34,6.5213]
[1723213921598,1.1053873,153.38,153.31,1.2708927]
[1723213921920,1.1053873,153.38,153.34,6.5214]
[1723213922088,1.1053873,153.38,153.31,1.2708927]
[1723213922294,45.4153873,153.38,153.31,1.2708927]
[1723213922502,6.71480602,153.41,153.31,1.2708927]
[1723213922692,51.9531018,153.52,153.46,6.5162]
[1723213922899,1.1290018,153.52,153.4,1.30323811]
[1723213923113,1.1053873,153.54,153.39,15.9742]
[1723213923325,1.1053873,153.54,153.44,6.5167]
[1723213923326,6.5147,153.5,153.44,6.5167]
[1723213923614,1.1053873,153.54,153.39,15.9742]
[1723213923615,45.4153873,153.49,153.39,15.9742]
[1723213923929,45.4153873,153.49,153.37,6.3745]
[1723213923930,6.5172,153.44,153.38,6.5193]
[1723213924092,45.4153873,153.43,153.27,6.3745]
[1723213924291,45.4153873,153.43,153.28,1.30415309]
[1723213924292,44.31,153.43,153.28,1.30415309]
[1723213924488,44.31,153.43,153.38,6.5196]
[1723213924708,50.8263,153.46,153.4,6.5188]
[1723213924991,44.31,153.46,153.4,6.5188]
[1723213925209,6.5168,153.45,153.39,6.5193]
[1723213925415,6.5172,153.44,153.31,2.57460804]
[1723213925593,1.1053873,153.43,153.38,6.5196]
[1723213925789,6.5172,153.44,153.38,6.5196]
[1723213926205,44.31,153.43,153.31,1.2708927]
[1723213926426,44.31,153.46,153.31,2.57472713]
[1723213926719,0.12549,153.44,153.31,1.2708927]
[1723213926920,0.12549,153.44,153.37,6.5201]
[1723213926921,6.76858,153.44,153.37,6.5201]
[1723213927091,6.76858,153.44,153.31,1.2708927]
[1723213927092,44.31,153.46,153.32,1.30385914]
[1723213927424,6.5175,153.44,153.38,6.5193]
[1723213927920,45.4153873,153.43,153.31,1.2708927]
[1723213928093,44.31,153.43,153.31,1.2708927]
[1723213928402,0.12549,153.42,153.31,1.2708927]
[1723213928607,0.37647,153.42,153.31,1.2708927]
[1723213929013,0.37647,153.42,153.35,6.5206]
[1723213929314,1.4818573,153.42,153.31,1.2708927]
[1723213929616,0.12549,153.39,153.31,1.2708927]
[1723213929916,6.5223,153.32,153.31,1.2708927]
[1723213930127,6.64989,153.27,153.26,1.78781348]
[1723213930509,6.77538,153.27,153.26,1.78781348]
[1723213930709,7.02636,153.27,153.26,1.78781348]
[1723213931015,6.90087,153.27,153.26,1.78781348]
[1723213931199,6.5252,153.25,153.21,1.80473425]
[1723213931414,7.02716,153.25,153.21,1.80473425]
[1723213931811,52.02716,153.25,153.21,1.80473425]
[1723213932028,52.02716,153.25,153.21,0.1488382]
[1723213932029,16.43989,153.24,153.21,0.1488382]
[1723213932219,16.43989,153.24,153.14,6.71791611]
[1723213932220,32.6195,153.29,153.14,6.71791611]
[1723213932221,3.7979852,153.3,153.17,6.4426]
[1723213932397,2.14293126,153.32,153.17,6.4426]
[1723213932398,44.31,153.45,153.17,21.6606]
[1723213932598,44.31,153.41,153.22,44.31]
[1723213932813,44.31,153.38,153.22,44.31]
[1723213933014,14.8788,153.48,153.25,44.31]
[1723213933224,44.31,153.4,153.22,44.31]
[1723213933411,44.31,153.37,153.19,44.31]
[1723213933602,64.31,153.43,153.3,6.5227]
[1723213933603,44.31,153.4,153.3,6.5227]
[1723213933816,44.31,153.4,153.22,44.31]
[1723213934010,44.31,153.4,153.23,46.30466126]
[1723213934330,6.5231,153.31,153.24,6.5253]
[1723213934625,6.5231,153.31,153.17,65.9706]
[1723213934626,1.1053873,153.3,153.17,65.9706]
[1723213934826,1.1053873,153.35,153.18,45.30512798]
[1723213934997,6.1654,153.36,153.22,6.5264]
[1723213934998,44.31,153.31,153.22,6.5264]
[1723213935207,0.25098,153.3,153.23,6.5261]
[1723213935418,0.12549,153.29,153.16,1.82165503]
[1723213935604,6.89997,153.3,153.16,1.82165503]
[1723213935605,0.37647,153.3,153.17,45.61527192]
[1723213935803,6.64879,153.3,153.17,44.31]
[1723213936001,6.64879,153.3,153.16,1.82165503]
[1723213936002,0.12549,153.25,153.16,1.82165503]
[1723213936417,6.5235,153.29,153.24,6.5257]
[1723213936737,1.12896567,153.36,153.21,44.31]
[1723213937032,44.31,153.38,153.24,44.31]
[1723213937033,1.1053873,153.38,153.24,44.31]
[1723213937245,44.31,153.4,153.24,44.31]
[1723213937526,45.4153873,153.37,153.22,15.938]
[1723213937704,45.4153873,153.37,153.27,6.5243]
[1723213937900,45.4153873,153.37,153.22,15.938]
[1723213938308,10.22239521,153.39,153.23,1.30474817]
[1723213938513,16.74209521,153.39,153.33,6.5218]
[1723213938713,1.1053873,153.38,153.3,6.523]
[1723213938911,6.5218,153.34,153.28,6.5236]
[1723213939114,6.5218,153.34,153.06,7.427584]
[1723213939115,44.31,153.3,153.06,7.427584]
[1723213939325,44.31,153.3,153.11,45.61539559]
[1723213939502,44.31,153.27,153.11,45.61568568]
[1723213939706,6.5225,153.32,153.17,44.31]
[1723213940028,6.5219,153.33,153.2,44.31]
[1723213940330,6.5231,153.3,153.18,1.30475823]
[1723213940533,6.5236,153.29,153.17,45.61503832]
[1723213940736,20.0,153.36,153.15,6.1908]
[1723213940737,6.5205,153.37,153.23,44.31]
[1723213940939,6.5206,153.36,153.3,6.5231]
[1723213941231,6.5206,153.36,153.23,44.31]
[1723213941232,1.1053873,153.35,153.25,6.5248]
[1723213941411,1.1053873,153.35,153.15,6.1908]
[1723213941412,1.1053873,153.35,153.17,44.31]
[1723213941641,1.1053873,153.34,153.18,45.37647]
[1723213941839,44.31,153.36,153.19,0.12549]
[1723213942129,6.5193,153.39,153.33,6.5216]
[1723213942328,10.22149673,153.4,153.23,44.31]
[1723213942329,10.22149673,153.4,153.24,1.30441104]
[1723213942514,6.5201,153.37,153.31,6.5224]
[1723213942717,1.1053873,153.36,153.2,44.31]
[1723213943031,45.4153873,153.36,153.2,44.31]
[1723213943211,45.4153873,153.36,153.17,44.31]
[1723213943406,16.3026,153.35,153.18,1.30492037]
[1723213943601,44.31,153.33,153.18,1.30492037]
[1723213943929,45.4153873,153.39,153.2,44.31]
[1723213944103,20.0,153.38,153.2,44.31]
[1723213944306,6.5224,153.32,153.2,44.31]
[1723213944500,1.1053873,153.31,153.27,6.5243]
[1723213944708,6.5219,153.33,153.2,45.61479975]
[1723213944919,1.1053873,153.35,153.21,45.0]
[1723213945237,1.1053873,153.35,153.2,44.31]
[1723213945238,16.3058,153.32,153.16,1.30454958]
[1723213945531,1.1053873,153.31,153.15,6.1908]
[1723213945731,44.31,153.3,153.15,6.1908]
[1723213946211,44.31,153.3,153.15,7.49627994]
[1723213946424,0.12549,153.28,153.15,6.1908]
[1723213946611,20.37647,153.29,153.22,6.5264]
[1723213946927,20.37647,153.29,153.2,6.527]
[1723213946928,6.5249,153.26,153.2,6.527]
[1723213947128,6.5249,153.26,153.21,6.5268]
[1723213947330,6.5249,153.26,153.18,6.5282]
[1723213947331,1.2308773,153.25,153.18,6.5282]
[1723213947506,1.2308773,153.25,153.14,16.2325]
[1723213947507,6.5265,153.22,153.14,16.2325]
[1723213947709,6.5265,153.22,153.1,1.83857581]
[1723213947710,0.12549,153.2,153.1,1.83857581]
[1723213947914,6.5287,153.17,153.1,1.83857581]
[1723213948119,1.2308773,153.16,153.1,1.83857581]
[1723213948319,1.1053873,153.15,153.1,1.83857581]
[1723213948614,44.43549,153.21,153.1,1.83857581]
[1723213948915,1.6073473,153.2,153.1,1.83857581]
[1723213949307,0.12549,153.16,153.1,1.83857581]
[1723213949508,0.12549,153.15,153.1,1.83857581]
[1723213949721,1.1053873,153.14,153.1,1.83857581]
[1723213949907,6.5309,153.12,153.1,1.83857581]
[1723213950238,1.3563673,153.11,153.1,1.83857581]
[1723213950524,50.8409,153.12,153.1,1.83857581]
[1723213950525,1.1053873,153.12,153.1,1.83857581]
[1723213950728,0.25098,153.13,153.1,1.83857581]
[1723213950933,6.5283,153.18,153.1,1.83857581]
[1723213951105,1.1053873,153.17,153.1,1.83857581]
[1723213951530,44.31,153.15,153.1,1.83857581]
[1723213951730,6.5309,153.12,153.1,1.83857581]
[1723213951931,1.1053873,153.11,153.1,1.83857581]
[1723213952232,0.12549,153.15,153.1,1.83857581]
[1723213952432,1.1053873,153.19,153.1,1.83857581]
[1723213952637,59.4569,153.23,153.1,1.83857581]
[1723213952807,6.5312,153.11,153.1,1.83857581]
[1723213953012,44.31,153.13,153.1,1.83857581]
[1723213953013,45.4153873,153.13,153.1,1.83857581]